lending/lending_fUSD_20250114
["ID","MTS","AMOUNT","RATE_DAILY","PERIOD"]
[348887599,1736855437908,-500.0,9.967e-05,2]
[348887600,1736855437918,-500.0,9.967e-05,2]
[348887601,1736855437927,-597.62585737,9.967e-05,2]
[348887602,1736855437940,-120.05414263,9.967e-05,2]
[348887603,1736855437950,-314.89470583,9.967e-05,2]
[348887604,1736855437963,-185.10529417,9.967e-05,2]
[348887605,1736855437973,-500.0,9.967e-05,2]
[348887606,1736855437983,-612.68416389,9.967e-05,2]
[348887607,1736855437992,-842.8,9.967e-05,2]
[348887608,1736855438003,-500.0,9.967e-05,2]
[348887609,1736855438012,-641.07,9.967e-05,2]
[348887610,1736855438023,-1557.46,9.967e-05,2]
[348887611,1736855438033,-500.0,9.967e-05,2]
[348887612,1736855438043,-500.0,9.967e-05,2]
[348887613,1736855438053,-570.87,9.967e-05,2]
[348887614,1736855438062,-500.0,9.967e-05,2]
[348887615,1736855438072,-582.54,9.967e-05,2]
[348887616,1736855438082,-500.0,9.967e-05,2]
[348887617,1736855438092,-500.0,9.967e-05,2]
[348887618,1736855438101,-298.9695604,9.967e-05,2]
[348887619,1736855438111,-500.0,9.967e-05,2]
[348887620,1736855438120,-459.45517744,9.967e-05,2]
[348887623,1736855439659,-40.54482256,9.967e-05,2]
[348887624,1736855439671,-363.44132414,9.967e-05,2]
[348887625,1736855439684,-136.55867586,9.967e-05,2]
[348887626,1736855439695,-500.0,9.967e-05,2]
[348887627,1736855439707,-217.66916714,9.967e-05,2]
[348887628,1736855439723,-282.33083286,9.967e-05,2]
[348887629,1736855439736,-500.0,9.967e-05,2]
[348887630,1736855439748,-1090.26916714,9.967e-05,2]
[348887642,1736855443901,-2022.12083286,9.967e-05,2]
[348887643,1736855443912,-500.0,9.967e-05,2]
[348887644,1736855443922,-500.0,9.967e-05,2]
[348887645,1736855443931,-500.0,9.967e-05,2]
[348887646,1736855443941,-500.0,9.967e-05,2]
[348887647,1736855443951,-500.0,9.967e-05,2]
[348887648,1736855443960,-500.0,9.967e-05,2]
[348887649,1736855443970,-500.0,9.967e-05,2]
[348887650,1736855443980,-500.0,9.967e-05,2]
[348887651,1736855443990,-500.0,9.967e-05,2]
[348887652,1736855443999,-500.0,9.967e-05,2]
[348887653,1736855444008,-500.0,9.967e-05,2]
[348887654,1736855444018,-500.0,9.967e-05,2]
[348887655,1736855444027,-500.0,9.967e-05,2]
[348887656,1736855444036,-560.6,9.967e-05,2]
[348887657,1736855444046,-500.0,9.967e-05,2]
[348887658,1736855444055,-500.0,9.967e-05,2]
[348887659,1736855444065,-500.0,9.967e-05,2]
[348887660,1736855444074,-725.33,9.967e-05,2]
[348887661,1736855444085,-500.0,9.967e-05,2]
[348887662,1736855444094,-500.0,9.967e-05,2]
[348887663,1736855444104,-895.36,9.967e-05,2]
[348887664,1736855444114,-512.71976571,9.967e-05,2]
[348887665,1736855444124,-500.0,9.967e-05,2]
[348887666,1736855444135,-500.0,9.967e-05,2]
[348887667,1736855444145,-500.0,9.967e-05,2]
[348887668,1736855444155,-500.0,9.967e-05,2]
[348887669,1736855444165,-500.0,9.967e-05,2]
[348887670,1736855444175,-500.0,9.967e-05,2]
[348887671,1736855444188,-500.0,9.967e-05,2]
[348887672,1736855444198,-500.0,9.967e-05,2]
[348887673,1736855444209,-500.0,9.967e-05,2]
[348887674,1736855444218,-491.30853461,9.967e-05,2]
[348887675,1736855444231,-8.69146539,9.967e-05,2]
[348887676,1736855444240,-500.0,9.967e-05,2]
[348887677,1736855444250,-153.73603164,9.967e-05,2]
[348887678,1736855444272,-346.26396836,9.967e-05,2]
[348887679,1736855444281,-911.19,9.967e-05,2]
[348887680,1736855444290,-500.98,9.967e-05,2]
[348887683,1736855444300,-241.56603164,9.967e-05,2]
[348887709,1736855445968,-510.29019,9.966e-05,2]
[348887710,1736855445980,-982.1194004,9.966e-05,2]
[348887711,1736855450935,2565.7,8.219e-05,2]
[348887715,1736855889534,1000.0,0.00023,120]
[348887717,1736855971276,1000.0,0.00013698,30]
[348887718,1736855971535,1000.0,0.00013698,30]
[348887719,1736855971992,1000.0,0.00013698,30]
[348887720,1736855972327,1000.0,0.00013698,30]
[348887721,1736855972422,1000.0,0.00013698,30]
[348887722,1736855972559,1000.0,0.00013698,30]
[348887723,1736855972807,1000.0,0.00013698,30]
[348887724,1736855973073,1000.0,0.00013698,30]
[348887725,1736855973349,1000.0,0.00013698,30]
[348887726,1736855973601,1000.0,0.00013698,30]
[348887727,1736855974183,1000.0,0.00013698,30]
[348887728,1736855974455,1000.0,0.00013698,30]
[348887729,1736855974714,1000.0,0.00013698,30]
[348887730,1736855974956,1000.0,0.00013698,30]
[348887731,1736855975209,1000.0,0.0001383,30]
[348887732,1736855975451,1000.0,0.00014104,30]
[348887733,1736855975731,1000.0,0.00014378,30]
[348887734,1736855975967,1000.0,0.00014652,30]
[348887735,1736855976231,1000.0,0.00014926,30]
[348887736,1736855976642,303.76,0.000152,30]
[348887737,1736855977127,5000.0,0.00023,120]
[348887774,1736856565711,1058.0,8.531e-05,2]
[348887785,1736856586866,1058.0,8.531e-05,2]
[348887786,1736856608084,1058.0,8.531e-05,2]
[348887787,1736856629292,1058.0,8.531e-05,2]
[348887805,1736856631679,-1058.0,8.676e-05,2]
[348887806,1736856631689,-380.00752279,8.981e-05,2]
[348887807,1736856632048,-619.99247721,8.981e-05,2]
[348887808,1736856632058,-250.0,8.986e-05,2]
[348887809,1736856632068,-150.0,9e-05,2]
[348887810,1736856632077,-186.45787987,9e-05,2]
[348887811,1736856632086,-150.0,9e-05,2]
[348887812,1736856632094,-291.94,9.01e-05,2]
[348887813,1736856632103,-367.38,9.04e-05,2]
[348887814,1736856632112,-324.15,9.046e-05,2]
[348887815,1736856632122,-250.0,9.046e-05,2]
[348887816,1736856632131,-1058.0,9.132e-05,2]
[348887817,1736856632141,-161.389,9.5e-05,2]
[348887818,1736856632151,-1058.0,9.613e-05,2]
[348887819,1736856632160,-3897.0,9.849e-05,2]
[348887820,1736856632170,-150.0,9.849e-05,2]
[348887821,1736856632179,-2000.0,9.9e-05,2]
[348887822,1736856632188,-300.0,9.959e-05,2]
[348887823,1736856632197,-1000.0,9.96e-05,2]
[348887824,1736856632206,-1000.0,9.96e-05,3]
[348887825,1736856632216,-1000.0,9.96e-05,4]
[348887826,1736856632225,-2000.0,9.96e-05,2]
[348887827,1736856632234,-2000.0,9.96e-05,4]
[348887828,1736856632244,-2000.0,9.96e-05,5]
[348887829,1736856632253,-1003.79,9.96e-05,6]
[348887830,1736856632263,-150.0,9.966e-05,2]
[348887831,1736856632273,-909.55,9.967e-05,2]
[348887832,1736856632283,-500.0,9.967e-05,2]
[348887833,1736856632292,-1263.96,9.967e-05,2]
[348887834,1736856632301,-612.3,9.967e-05,2]
[348887835,1736856632311,-1223.2,9.967e-05,2]
[348887836,1736856632320,-923.87,9.967e-05,2]
[348887838,1736856632329,-1437.91,9.967e-05,2]
[348887840,1736856632339,-1198.84,9.967e-05,2]
[348887842,1736856632357,-1756.67,9.967e-05,2]
[348887844,1736856632369,-3081.04,9.967e-05,2]
[348887846,1736856632379,-7107.6,9.967e-05,2]
[348887848,1736856632388,-1437.7,9.967e-05,2]
[348887850,1736856632397,-818.49,9.967e-05,2]
[348887852,1736856632407,-2446.85,9.967e-05,2]
[348887854,1736856632416,-507.3728702,9.967e-05,2]
[348887856,1736856632425,-500.0,9.967e-05,2]
[348887857,1736856632434,-734.72,9.967e-05,2]
[348887858,1736856632443,-1218.41,9.967e-05,2]
[348887859,1736856632452,-1556.65,9.967e-05,2]
[348887860,1736856632461,-500.0,9.967e-05,2]
[348887861,1736856632470,-1000.0,9.967e-05,2]
[348887862,1736856632479,-830.38,9.967e-05,2]
[348887863,1736856632487,-500.0,9.967e-05,2]
[348887864,1736856632496,-2123.44,9.967e-05,2]
[348887865,1736856632505,-2139.03,9.967e-05,2]
[348887866,1736856632514,-500.0,9.973e-05,2]
[348887867,1736856632523,-261.94573883,9.973e-05,2]
[348887868,1736856632532,-3619.16311092,9.975e-05,2]
[348887941,1736856637886,-942.71,9.975e-05,2]
[348888085,1736856639710,-500.0,9.975e-05,2]
[348888107,1736856642789,-4817.55009671,9.975e-05,2]
[348888108,1736856642889,-1021.88426883,9.975e-05,2]
[348888109,1736856642901,-1353.19063281,9.975e-05,2]
[348888110,1736856642911,-179.195,9.981e-05,2]
[348888111,1736856642920,-2904.131,9.985e-05,2]
[348888112,1736856642929,-500.0,9.994e-05,2]
[348888113,1736856642938,-768.63,9.994e-05,2]
[348888114,1736856642947,-500.0,9.994e-05,2]
[348888115,1736856642956,-500.0,9.994e-05,2]
[348888116,1736856642965,-500.0,9.994e-05,2]
[348888117,1736856642975,-500.0,9.994e-05,2]
[348888118,1736856642984,-500.0,9.994e-05,2]
[348888119,1736856642993,-687.78,9.994e-05,2]
[348888120,1736856643002,-22.46377221,9.994e-05,2]
[348888121,1736856643013,-591.89622779,9.994e-05,2]
[348888122,1736856643021,-126.81381283,9.994e-05,2]
[348888152,1736856645998,-373.18618717,9.994e-05,2]
[348888153,1736856646007,-807.69,9.994e-05,2]
[348888154,1736856646016,-500.0,9.994e-05,2]
[348888155,1736856646026,-500.0,9.994e-05,2]
[348888156,1736856646035,-547.08,9.994e-05,2]
[348888157,1736856646044,-223.67243142,9.994e-05,2]
[348888158,1736856646056,-334.59756858,9.994e-05,2]
[348888159,1736856646065,-125.16514214,9.994e-05,2]
[348888578,1736856650540,1058.0,8.531e-05,2]
[348888806,1736856669898,2144.3,8.219e-05,2]
[348888807,1736856669922,449.75,8.219e-05,2]
[348888808,1736856673086,1058.0,8.531e-05,2]
[348888816,1736857042900,50000.0,0.0002,30]
[348888817,1736857076744,20000.0,0.0002,30]
[348888820,1736857503106,1045.71616179,0.00023,120]
[348888821,1736857578382,2464.34,8.219e-05,2]
[348888829,1736857675685,865.34,0.00023,120]
[348888830,1736857724031,6027.91,8e-05,2]
[348888831,1736857724054,935.62624164,8e-05,2]
[348888865,1736857831914,-200.0,8.808e-05,2]
[348888866,1736857831924,-215.99,8.852e-05,2]
[348888867,1736857831933,-23880.0,8.852e-05,2]
[348888868,1736857831943,-293.9,8.89e-05,2]
[348888869,1736857831952,-1000.0,8.931e-05,2]
[348888870,1736857831961,-1717.43,8.989e-05,2]
[348888871,1736857831971,-500.0,8.996e-05,2]
[348888872,1736857831980,-150.0,9e-05,2]
[348888873,1736857831990,-150.0,9e-05,2]
[348888874,1736857831999,-150.0,9e-05,2]
[348888875,1736857832008,-150.0,9e-05,2]
[348888876,1736857832020,-251.47,9.002e-05,2]
[348888877,1736857832030,-150.0,9.007e-05,2]
[348888878,1736857832041,-226.94,9.008e-05,2]
[348888879,1736857832051,-165.37,9.008e-05,2]
[348888880,1736857832060,-540.62,9.046e-05,2]
[348888881,1736857832071,-698.06,9.046e-05,2]
[348888882,1736857832082,-250.0,9.046e-05,2]
[348888883,1736857832091,-250.0,9.046e-05,2]
[348888884,1736857832102,-250.0,9.046e-05,2]
[348888885,1736857832111,-168.65,9.113e-05,2]
[348888886,1736857832120,-1500.0,9.135e-05,2]
[348888887,1736857832131,-157.994781,9.739e-05,2]
[348888888,1736857832140,-573.0,9.9e-05,2]
[348888889,1736857832150,-767.8541511,9.969e-05,2]
[348888890,1736857832160,-150.87908571,9.973e-05,2]
[348888891,1736857832172,-152.87598113,9.973e-05,2]
[348888892,1736857832183,-500.0,9.973e-05,2]
[348888893,1736857832192,-3839.654,9.975e-05,2]
[348888894,1736857832201,-169.799,9.978e-05,2]
[348888895,1736857832211,-200.0,9.982e-05,2]
[348888896,1736857832220,-157.994781,9.983e-05,2]
[348888897,1736857832230,-200.0,9.988e-05,2]
[348888898,1736857832239,-200.0,9.991e-05,2]
[348888899,1736857832250,-504.47777772,9.991e-05,2]
[348888900,1736857832259,-1273.74,9.993e-05,2]
[348888901,1736857832268,-1027.74,9.993e-05,2]
[348888902,1736857832278,-634.81,9.993e-05,2]
[348888903,1736857832287,-1776.37,9.993e-05,2]
[348888904,1736857832296,-2221.51,9.993e-05,2]
[348888905,1736857832305,-748.46,9.993e-05,2]
[348888906,1736857832314,-2718.18,9.993e-05,2]
[348888907,1736857832323,-1148.15,9.993e-05,2]
[348888908,1736857832332,-1065.9,9.993e-05,2]
[348888909,1736857832342,-2494.56,9.993e-05,2]
[348888910,1736857832351,-6786.9,9.993e-05,2]
[348888912,1736857832360,-977.95,9.993e-05,2]
[348888913,1736857832370,-500.0,9.993e-05,2]
[348888916,1736857832380,-385.12816666,9.993e-05,2]
[348888917,1736857832389,-2185.9,9.993e-05,2]
[348888919,1736857832399,-823.57,9.993e-05,2]
[348888922,1736857832412,-1548.11,9.993e-05,2]
[348888923,1736857832422,-1191.21,9.993e-05,2]
[348888926,1736857832431,-3522.19,9.993e-05,2]
[348888928,1736857832441,-2029.33,9.993e-05,2]
[348888930,1736857832451,-5442.63,9.993e-05,2]
[348888931,1736857832460,-2610.09,9.993e-05,2]
[348888934,1736857832469,-500.0,9.993e-05,2]
[348888936,1736857832479,-582.73,9.993e-05,2]
[348888937,1736857832488,-1347.33,9.993e-05,2]
[348888939,1736857832497,-3567.16,9.993e-05,2]
[348888941,1736857832507,-2152.95,9.993e-05,2]
[348888942,1736857832516,-1534.46,9.993e-05,2]
[348888943,1736857832525,-3281.72,9.993e-05,2]
[348888944,1736857832534,-500.0,9.993e-05,2]
[348888945,1736857832545,-500.0,9.993e-05,2]
[348888946,1736857832558,-1277.68,9.993e-05,2]
[348888947,1736857832569,-202.99750716,9.993e-05,2]
[348888948,1736857832579,-1223.16,9.993e-05,2]
[348888949,1736857832588,-1273.26,9.993e-05,2]
[348888950,1736857832597,-3268.17,9.993e-05,2]
[348888952,1736857832607,-500.0,9.993e-05,2]
[348888955,1736857832617,-500.0,9.993e-05,2]
[348888957,1736857832626,-500.0,9.993e-05,2]
[348888959,1736857832635,-1236.23,9.993e-05,2]
[348888961,1736857832645,-500.0,9.993e-05,2]
[348888963,1736857832656,-500.0,9.993e-05,2]
[348888965,1736857832666,-500.0,9.993e-05,2]
[348888967,1736857832677,-500.0,9.993e-05,2]
[348888968,1736857832686,-500.0,9.993e-05,2]
[348888970,1736857832695,-500.0,9.993e-05,2]
[348888972,1736857832704,-763.11,9.993e-05,2]
[348888974,1736857832713,-500.0,9.993e-05,2]
[348888976,1736857832722,-500.0,9.993e-05,2]
[348888978,1736857832732,-500.0,9.993e-05,2]
[348888980,1736857832752,-500.0,9.993e-05,2]
[348888982,1736857832762,-500.0,9.993e-05,2]
[348888984,1736857832771,-897.788023,9.994e-05,2]
[348888986,1736857832780,-158.155028,9.994e-05,2]
[348888988,1736857832789,-157.099566,9.994e-05,2]
[348888990,1736857832799,-1134.961278,9.994e-05,2]
[348888992,1736857832808,-500.0,9.994e-05,2]
[348888994,1736857832818,-500.0,9.994e-05,2]
[348888996,1736857832827,-502.78554275,9.994e-05,2]
[348888998,1736857832836,-500.0,9.994e-05,2]
[348889000,1736857832845,-500.0,9.994e-05,2]
[348889002,1736857832854,-500.0,9.994e-05,2]
[348889004,1736857832863,-500.0,9.994e-05,2]
[348889006,1736857832872,-500.0,9.994e-05,2]
[348889008,1736857832882,-500.0,9.994e-05,2]
[348889010,1736857832891,-500.0,9.994e-05,2]
[348889012,1736857832901,-500.0,9.994e-05,2]
[348889014,1736857832911,-500.0,9.994e-05,2]
[348889016,1736857832920,-500.0,9.994e-05,2]
[348889018,1736857832929,-500.0,9.994e-05,2]
[348889020,1736857832939,-500.77558763,9.994e-05,2]
[348889022,1736857832948,-500.0,9.994e-05,2]
[348889024,1736857832958,-500.0,9.994e-05,2]
[348889026,1736857832967,-500.0,9.994e-05,2]
[348889028,1736857832977,-500.0,9.994e-05,2]
[348889030,1736857832986,-500.0,9.994e-05,2]
[348889032,1736857832995,-500.0,9.994e-05,2]
[348889034,1736857833006,-500.0,9.994e-05,2]
[348889036,1736857833016,-500.0,9.994e-05,2]
[348889038,1736857833025,-510.10258015,9.994e-05,2]
[348889040,1736857833035,-500.0,9.994e-05,2]
[348889042,1736857833044,-502.19219473,9.994e-05,2]
[348889044,1736857833053,-500.0,9.994e-05,2]
[348889046,1736857833063,-500.0,9.994e-05,2]
[348889074,1736857833321,-500.0,9.994e-05,2]
[348889076,1736857833331,-500.0,9.994e-05,2]
[348889078,1736857833342,-500.0,9.994e-05,2]
[348889080,1736857833352,-504.32868547,9.994e-05,2]
[348889082,1736857833361,-500.0,9.994e-05,2]
[348889084,1736857833372,-355.97426804,9.994e-05,2]
[348889086,1736857833381,-500.0,9.994e-05,2]
[348889088,1736857833391,-266.96514489,9.994e-05,2]
[348889091,1736857833401,-500.0,9.994e-05,2]
[348889093,1736857833412,-500.0,9.994e-05,2]
[348889095,1736857833421,-500.0,9.994e-05,2]
[348889097,1736857833431,-500.0,9.994e-05,2]
[348889098,1736857833441,-502.4297246,9.994e-05,2]
[348889101,1736857833450,-502.29169325,9.994e-05,2]
[348889103,1736857833460,-500.0,9.994e-05,2]
[348889105,1736857833470,-500.0,9.994e-05,2]
[348889107,1736857833480,-502.96350983,9.994e-05,2]
[348889109,1736857833490,-501.465658,9.994e-05,2]
[348889111,1736857833499,-500.0,9.994e-05,2]
[348889112,1736857833509,-500.0,9.994e-05,2]
[348889114,1736857833518,-510.34220156,9.994e-05,2]
[348889116,1736857833528,-204.32532721,9.994e-05,2]
[348889118,1736857833537,-500.0,9.994e-05,2]
[348889120,1736857833547,-500.0,9.994e-05,2]
[348889122,1736857833556,-500.0,9.994e-05,2]
[348889125,1736857833566,-500.0,9.994e-05,2]
[348889126,1736857833576,-189.72468071,9.994e-05,2]
[348889128,1736857833585,-543.09,9.994e-05,2]
[348889130,1736857833594,-500.0,9.994e-05,2]
[348889132,1736857833604,-500.0,9.994e-05,2]
[348889135,1736857833613,-500.0,9.994e-05,2]
[348889137,1736857833624,-500.0,9.994e-05,2]
[348889139,1736857833633,-500.0,9.994e-05,2]
[348889141,1736857833644,-500.0,9.994e-05,2]
[348889143,1736857833653,-500.0,9.994e-05,2]
[348889145,1736857833663,-500.0,9.994e-05,2]
[348889147,1736857833672,-500.0,9.994e-05,2]
[348889149,1736857833682,-500.0,9.994e-05,2]
[348889151,1736857833692,-500.0,9.994e-05,2]
[348889152,1736857833702,-500.0,9.994e-05,2]
[348889154,1736857833711,-500.0,9.994e-05,2]
[348889156,1736857833721,-500.0,9.994e-05,2]
[348889158,1736857833730,-500.0,9.994e-05,2]
[348889160,1736857833739,-500.0,9.994e-05,2]
[348889162,1736857833749,-500.0,9.994e-05,2]
[348889164,1736857833758,-500.0,9.994e-05,2]
[348889166,1736857833768,-1067.66,9.994e-05,2]
[348889168,1736857833778,-500.0,9.994e-05,2]
[348889170,1736857833787,-500.0,9.994e-05,2]
[348889172,1736857833797,-500.0,9.994e-05,2]
[348889174,1736857833806,-500.0,9.994e-05,2]
[348889176,1736857833815,-500.0,9.994e-05,2]
[348889178,1736857833825,-500.0,9.994e-05,2]
[348889180,1736857833834,-500.0,9.994e-05,2]
[348889182,1736857833843,-500.0,9.994e-05,2]
[348889184,1736857833852,-292.96574302,9.994e-05,2]
[348889218,1736857834169,-260.43425698,9.994e-05,2]
[348889220,1736857834183,-500.0,9.994e-05,2]
[348889221,1736857834193,-500.0,9.994e-05,2]
[348889223,1736857834202,-507.24094463,9.994e-05,2]
[348889225,1736857834211,-500.0,9.994e-05,2]
[348889227,1736857834221,-500.0,9.994e-05,2]
[348889229,1736857834230,-500.0,9.994e-05,2]
[348889231,1736857834240,-500.0,9.994e-05,2]
[348889233,1736857834249,-500.0,9.994e-05,2]
[348889235,1736857834259,-500.0,9.994e-05,2]
[348889237,1736857834270,-500.0,9.994e-05,2]
[348889239,1736857834279,-502.63762665,9.994e-05,2]
[348889241,1736857834288,-500.0,9.994e-05,2]
[348889243,1736857834297,-500.0,9.994e-05,2]
[348889245,1736857834305,-500.0,9.994e-05,2]
[348889247,1736857834315,-501.32697143,9.994e-05,2]
[348889249,1736857834324,-500.0,9.994e-05,2]
[348889251,1736857834333,-500.0,9.994e-05,2]
[348889253,1736857834343,-502.89445788,9.994e-05,2]
[348889255,1736857834353,-500.0,9.994e-05,2]
[348889257,1736857834362,-500.0,9.994e-05,2]
[348889259,1736857834370,-3832.83,9.994e-05,2]
[348889261,1736857834379,-500.0,9.994e-05,2]
[348889263,1736857834388,-500.0,9.994e-05,2]
[348889265,1736857834397,-504.41438813,9.994e-05,2]
[348889267,1736857834406,-500.0,9.994e-05,2]
[348889269,1736857834415,-500.0,9.994e-05,2]
[348889271,1736857834424,-500.0,9.994e-05,2]
[348889273,1736857834433,-500.0,9.994e-05,2]
[348889275,1736857834443,-500.0,9.994e-05,2]
[348889277,1736857834452,-500.0,9.994e-05,2]
[348889279,1736857834461,-500.0,9.994e-05,2]
[348889280,1736857834471,-500.0,9.994e-05,2]
[348889282,1736857834480,-428.45835845,9.994e-05,2]
[348889284,1736857834490,-500.0,9.994e-05,2]
[348889286,1736857834499,-500.0,9.994e-05,2]
[348889288,1736857834508,-500.0,9.994e-05,2]
[348889290,1736857834517,-506.64006082,9.994e-05,2]
[348889292,1736857834526,-500.0,9.994e-05,2]
[348889294,1736857834536,-500.0,9.994e-05,2]
[348889296,1736857834545,-503.43363197,9.994e-05,2]
[348889298,1736857834555,-500.0,9.994e-05,2]
[348889301,1736857834566,-500.0,9.994e-05,2]
[348889302,1736857834575,-500.0,9.994e-05,2]
[348889304,1736857834584,-286.62885234,9.994e-05,2]
[348889306,1736857834594,-502.24448428,9.994e-05,2]
[348889308,1736857834603,-503.90950936,9.994e-05,2]
[348889310,1736857834612,-500.0,9.994e-05,2]
[348889312,1736857834621,-501.09626264,9.994e-05,2]
[348889314,1736857834630,-621.07,9.994e-05,2]
[348889315,1736857834639,-500.0,9.994e-05,2]
[348889316,1736857834649,-500.0,9.994e-05,2]
[348889317,1736857834660,-504.54990113,9.994e-05,2]
[348889318,1736857834673,-501.34526512,9.994e-05,2]
[348889319,1736857834683,-500.0,9.994e-05,2]
[348889320,1736857834696,-500.0,9.994e-05,2]
[348889321,1736857834708,-500.0,9.994e-05,2]
[348889322,1736857834717,-500.0,9.994e-05,2]
[348889323,1736857834725,-500.0,9.994e-05,2]
[348889324,1736857834734,-526.75,9.994e-05,2]
[348889325,1736857834743,-500.0,9.994e-05,2]
[348889326,1736857834752,-502.46920946,9.994e-05,2]
[348889327,1736857834761,-500.0,9.994e-05,2]
[348889329,1736857834776,-500.0,9.994e-05,2]
[348889331,1736857834792,-500.0,9.994e-05,2]
[348889333,1736857834808,-506.01226298,9.994e-05,2]
[348889335,1736857834824,-500.0,9.994e-05,2]
[348889337,1736857834835,-505.05693471,9.994e-05,2]
[348889338,1736857834844,-794.16,9.994e-05,2]
[348889340,1736857834853,-500.0,9.994e-05,2]
[348889342,1736857834862,-395.60694277,9.994e-05,2]
[348889344,1736857834871,-500.0,9.994e-05,2]
[348889346,1736857834880,-500.0,9.994e-05,2]
[348889348,1736857834889,-500.0,9.994e-05,2]
[348889350,1736857834899,-500.0,9.994e-05,2]
[348889352,1736857834910,-284.50374291,9.994e-05,2]
[348889355,1736857834919,-500.0,9.994e-05,2]
[348889356,1736857834928,-393.09614819,9.994e-05,2]
[348889359,1736857834943,-106.90385181,9.994e-05,2]
[348889361,1736857834952,-500.0,9.994e-05,2]
[348889363,1736857834961,-500.0,9.994e-05,2]
[348889365,1736857834971,-500.80415625,9.994e-05,2]
[348889367,1736857834980,-500.0,9.994e-05,2]
[348889369,1736857834989,-500.0,9.994e-05,2]
[348889371,1736857834999,-500.0,9.994e-05,2]
[348889373,1736857835009,-500.0,9.994e-05,2]
[348889375,1736857835018,-505.42714639,9.994e-05,2]
[348889377,1736857835027,-500.0,9.994e-05,2]
[348889379,1736857835036,-500.0,9.994e-05,2]
[348889381,1736857835045,-501.80645419,9.994e-05,2]
[348889383,1736857835054,-501.83510129,9.994e-05,2]
[348889385,1736857835063,-500.0,9.994e-05,2]
[348889387,1736857835071,-503.75206027,9.994e-05,2]
[348889389,1736857835081,-500.0,9.994e-05,2]
[348889391,1736857835091,-500.0,9.994e-05,2]
[348889393,1736857835100,-794.92,9.994e-05,2]
[348889395,1736857835109,-500.0,9.994e-05,2]
[348889397,1736857835118,-500.0,9.994e-05,2]
[348889399,1736857835128,-500.0,9.994e-05,2]
[348889401,1736857835137,-500.46628391,9.994e-05,2]
[348889403,1736857835147,-1159.83,9.994e-05,2]
[348889405,1736857835156,-500.0,9.994e-05,2]
[348889407,1736857835166,-500.0,9.994e-05,2]
[348889409,1736857835181,-500.0,9.994e-05,2]
[348889411,1736857835191,-500.0,9.994e-05,2]
[348889413,1736857835199,-500.0,9.994e-05,2]
[348889415,1736857835209,-500.0,9.994e-05,2]
[348889417,1736857835218,-405.29430639,9.994e-05,2]
[348889419,1736857835228,-500.0,9.994e-05,2]
[348889421,1736857835237,-500.0,9.994e-05,2]
[348889423,1736857835246,-500.0,9.994e-05,2]
[348889425,1736857835256,-500.47445346,9.994e-05,2]
[348889427,1736857835266,-500.0,9.994e-05,2]
[348889429,1736857835275,-500.0,9.994e-05,2]
[348889431,1736857835284,-502.71911238,9.994e-05,2]
[348889433,1736857835293,-500.51472532,9.994e-05,2]
[348889435,1736857835302,-507.25545114,9.994e-05,2]
[348889437,1736857835312,-500.0,9.994e-05,2]
[348889439,1736857835321,-500.0,9.994e-05,2]
[348889441,1736857835330,-500.0,9.994e-05,2]
[348889443,1736857835340,-773.83,9.994e-05,2]
[348889445,1736857835349,-500.0,9.994e-05,2]
[348889447,1736857835358,-500.0,9.994e-05,2]
[348889449,1736857835367,-500.0,9.994e-05,2]
[348889451,1736857835376,-500.0,9.994e-05,2]
[348889453,1736857835386,-500.0,9.994e-05,2]
[348889454,1736857835394,-500.0,9.994e-05,2]
[348889457,1736857835406,-500.0,9.994e-05,2]
[348889458,1736857835415,-500.0,9.994e-05,2]
[348889460,1736857835425,-500.41521788,9.994e-05,2]
[348889462,1736857835434,-500.0,9.994e-05,2]
[348889464,1736857835442,-500.0,9.994e-05,2]
[348889466,1736857835452,-500.0,9.994e-05,2]
[348889468,1736857835461,-500.0,9.994e-05,2]
[348889470,1736857835470,-328.29475143,9.994e-05,2]